bitfinex-derivatives/quotes_SOLF0:USTF0_20250829
["timestamp","ask_amount","ask_price","bid_price","bid_amount"]
[1756507595535,0.03537586,203.08,203.02,7.37]
[1756507600637,2.88190631,203.07,203.02,7.37]
[1756507600837,7.91,203.06,202.97,7.48]
[1756507601640,0.03182954,203.04,202.97,7.48]
[1756507603043,7.94182954,203.04,203.0,7.48]
[1756507603239,7.94182954,203.04,202.99,7.48]
[1756507603443,7.94182954,203.04,202.98,7.48]
[1756507603645,10.82373585,203.04,202.98,7.48]
[1756507606843,7.91,203.03,202.95,7.48]
[1756507607754,2.91373585,203.04,202.92,7.48]
[1756507607755,7.91,203.0,202.92,7.48]
[1756507608457,0.03335138,202.98,202.92,7.48]
[1756507608647,2.91525769,202.98,202.92,7.48]
[1756507608846,10.82525769,202.98,202.92,7.48]
[1756507613959,10.82525769,202.98,202.88,7.48]
[1756507617858,2.88190631,202.95,202.88,7.48]
[1756507618162,7.91,202.94,202.88,7.48]
[1756507618552,0.03676991,202.93,202.88,7.48]
[1756507618758,0.03676991,202.93,202.84,7.48]
[1756507620458,0.03676991,202.93,202.87,7.48]
[1756507630370,7.51676991,202.93,202.86,2.88190631]
[1756507630568,7.51676991,202.93,202.87,7.51]
[1756507633666,0.03676991,202.93,202.87,7.51]
[1756507636067,0.03676991,202.93,202.92,10.39190631]
[1756507639169,0.03676991,202.93,202.92,7.51]
[1756507640172,0.03676991,202.93,202.87,47.01190631]
[1756507644980,0.03676991,202.93,202.88,7.51]
[1756507645879,0.03676991,202.93,202.87,39.50190631]
[1756507646079,0.03676991,202.93,202.88,7.51]
[1756507646279,0.03676991,202.93,202.87,45.02858387]
[1756507647875,0.03676991,202.93,202.88,7.51]
[1756507648076,7.51676991,202.93,202.87,13.03667756]
[1756507648278,7.51676991,202.93,202.87,7.51]
[1756507648883,7.48,202.9,202.83,13.03667756]
[1756507649580,0.03462978,202.89,202.83,13.03667756]
[1756507650379,0.03462978,202.89,202.83,5.52667756]
[1756507650681,7.51462978,202.89,202.83,5.52667756]
[1756507656990,7.51462978,202.89,202.83,13.33667756]
[1756507662693,7.51462978,202.89,202.83,7.81]
[1756507662892,7.58,202.87,202.8,13.33667756]
[1756507663695,0.0330646,202.86,202.8,13.33667756]
[1756507664692,0.0330646,202.86,202.8,7.81]
[1756507669401,2.88190631,202.85,202.8,7.81]
[1756507669598,10.46190631,202.85,202.79,7.81]
[1756507671600,7.58,202.85,202.79,7.81]
[1756507672000,2.88190631,202.83,202.79,7.81]
[1756507672500,7.58,202.82,202.79,7.81]
[1756507673104,2.88190631,202.83,202.79,7.81]
[1756507673403,7.58,202.82,202.75,7.81]
[1756507674197,2.88190631,202.8,202.75,7.81]
[1756507674395,7.58,202.79,202.73,7.81]
[1756507675602,0.03141294,202.81,202.73,7.81]
[1756507675805,0.03141294,202.81,202.74,5.52667756]
[1756507676101,0.03141294,202.81,202.75,7.81]
[1756507678305,2.91331925,202.81,202.75,7.81]
[1756507678505,7.58,202.8,202.75,7.81]
[1756507678911,2.88190631,202.78,202.69,7.81]
[1756507679609,0.03478479,202.76,202.69,7.81]
[1756507681307,0.03478479,202.76,202.69,129.01]
[1756507681513,0.03478479,202.76,202.7,7.81]
[1756507682908,2.88190631,202.75,202.7,7.81]
[1756507683107,7.58,202.74,202.7,7.81]
[1756507685611,2.88190631,202.75,202.65,331.22]
[1756507685810,7.58,202.74,202.66,7.81]
[1756507686413,0.03742459,202.72,202.66,7.81]
[1756507687710,2.88190631,202.71,202.66,7.81]
[1756507687916,7.57,202.7,202.66,7.81]
[1756507688112,2.88190631,202.68,202.59,7.96]
[1756507688316,2.88190631,202.68,202.6,7.96]
[1756507688914,0.0333019,202.66,202.6,7.96]
[1756507701725,7.57,202.64,202.54,10.94190631]
[1756507701932,7.57,202.64,202.55,7.96]
[1756507702527,0.0312083,202.62,202.55,7.96]
[1756507705732,0.0312083,202.62,202.56,7.96]
[1756507723032,0.0312083,202.62,202.61,7.36]
[1756507724439,0.0312083,202.62,202.61,12.88667756]
[1756507725736,0.0312083,202.62,202.61,7.36]
[1756507727341,0.0312083,202.62,202.61,12.88667756]
[1756507728137,0.0312083,202.62,202.61,7.36]
[1756507728538,0.0312083,202.62,202.61,12.88667756]
[1756507729340,0.0312083,202.62,202.61,7.36]
[1756507729941,0.0312083,202.62,202.61,12.89135179]
[1756507730138,0.0312083,202.62,202.61,7.36]
[1756507738751,7.98,202.75,202.65,7.36]
[1756507738945,7.98,202.72,202.65,12.89588796]
[1756507740552,7.98,202.72,202.66,0.03133475]
[1756507741046,7.98,202.72,202.67,7.36]
[1756507741246,7.98,202.75,202.68,5.53588796]
[1756507741446,7.98,202.72,202.66,0.03133475]
[1756507742649,7.98,202.72,202.66,5.56722271]
[1756507742844,7.98,202.72,202.67,7.36]
[1756507743043,7.98,202.72,202.66,5.56722271]
[1756507743249,2.88190631,202.74,202.66,5.56722271]
[1756507743449,7.98,202.73,202.67,7.36]
[1756507743856,7.98,202.73,202.67,12.89588796]
[1756507744255,7.98,202.73,202.67,7.36]
[1756507744456,2.88190631,202.77,202.67,8.41779427]
[1756507744656,7.98,202.76,202.68,7.36]
[1756507746857,2.88190631,202.73,202.65,13.10588796]
[1756507747048,7.82,202.72,202.63,5.53588796]
[1756507747246,2.88190631,202.7,202.63,5.53588796]
[1756507747451,7.82,202.69,202.63,5.53588796]
[1756507748253,2.88190631,202.7,202.64,0.03120051]
[1756507748649,7.82,202.69,202.64,0.03120051]
[1756507748856,2.88190631,202.7,202.64,0.03120051]
[1756507749055,7.82,202.69,202.64,0.03120051]
[1756507749254,7.82,202.66,202.64,0.03120051]
[1756507749658,7.82,202.66,202.59,13.10588796]
[1756507750259,7.82,202.66,202.6,0.03179362]
[1756507751162,7.82,202.66,202.6,5.56768158]
[1756507757868,7.82,202.66,202.6,0.03179362]
[1756507758367,7.82,202.66,202.6,5.56768158]
[1756507759268,7.82,202.66,202.6,0.03179362]
[1756507764073,7.82,202.66,202.6,5.56768158]
[1756507764274,7.82,202.66,202.62,7.57]
[1756507764472,7.82,202.66,202.61,5.53588796]
[1756507764674,7.82,202.66,202.62,7.57]
[1756507764870,7.82,202.68,202.62,7.57]
[1756507766071,7.82,202.64,202.6,0.03179362]
[1756507766275,7.82,202.61,202.6,0.03179362]
[1756507771679,7.82,202.68,202.6,0.03179362]
[1756507771875,2.88190631,202.64,202.6,0.03179362]
[1756507772080,7.82,202.63,202.6,0.03179362]
[1756507772378,2.88190631,202.64,202.6,0.03179362]
[1756507772579,7.82,202.63,202.6,7.60179362]
[1756507772982,10.70190631,202.64,202.61,7.57]
[1756507774674,7.82,202.63,202.61,7.57]
[1756507776490,7.82,202.65,202.6,0.03179362]
[1756507776983,7.82,202.65,202.61,7.76]
[1756507777583,7.82,202.65,202.6,0.03179362]
[1756507778083,7.82,202.65,202.61,7.76]
[1756507778787,7.82,202.65,202.6,0.03179362]
[1756507779584,7.41,202.69,202.61,7.76]
[1756507782391,7.41,202.69,202.62,7.76]
[1756507783992,7.41,202.66,202.6,0.03179362]
[1756507784193,7.41,202.69,202.62,5.53588796]
[1756507784487,7.41,202.69,202.61,13.29588796]
[1756507784989,7.41,202.69,202.61,7.76]
[1756507786385,10.29190631,202.69,202.6,5.56768158]
[1756507786586,7.41,202.65,202.6,0.03179362]
[1756507786785,2.88190631,202.66,202.6,0.03179362]
[1756507786990,7.41,202.65,202.6,0.03179362]
[1756507787192,2.88190631,202.66,202.6,0.03179362]
[1756507787393,7.41,202.65,202.6,0.03179362]
[1756507787882,2.88190631,202.66,202.6,0.03179362]
[1756507788292,7.41,202.65,202.6,0.03179362]
[1756507788694,2.88190631,202.66,202.6,0.03179362]
[1756507788895,7.41,202.65,202.6,0.03179362]
[1756507789587,10.29190631,202.65,202.6,0.03179362]
[1756507790789,2.88190631,202.65,202.6,0.03179362]
[1756507790994,7.41,202.64,202.6,0.03179362]
[1756507791488,2.88190631,202.65,202.6,0.03179362]
[1756507791694,7.41,202.64,202.6,0.03179362]
[1756507791995,2.88190631,202.65,202.6,0.03179362]
[1756507792690,7.41,202.64,202.6,0.03179362]
[1756507793284,2.88190631,202.65,202.6,0.03179362]
[1756507793589,7.41,202.64,202.6,7.79179362]
[1756507793789,7.41,202.64,202.61,7.76]
[1756507794987,7.41,202.67,202.61,7.76]
[1756507799298,7.41,202.67,202.6,5.56768158]
[1756507799491,7.41,202.67,202.6,0.03179362]
[1756507802190,7.41,202.67,202.6,5.56768158]
[1756507803994,7.41,202.67,202.6,0.03179362]
[1756507804203,2.88190631,202.68,202.6,0.03179362]
[1756507804204,2.88190631,202.65,202.6,0.03179362]
[1756507804388,7.41,202.64,202.6,0.03179362]
[1756507804988,2.88190631,202.65,202.6,0.03179362]
[1756507805189,7.41,202.64,202.6,0.03179362]
[1756507805698,2.88190631,202.65,202.6,0.03179362]
[1756507806500,7.41,202.64,202.6,0.03179362]
[1756507806800,7.36,202.64,202.6,0.03179362]
[1756507807001,2.88190631,202.65,202.6,0.03179362]
[1756507807394,7.36,202.64,202.6,0.03179362]
[1756507807600,2.88190631,202.65,202.6,0.03179362]
[1756507807799,7.36,202.64,202.6,0.03179362]
[1756507808302,2.88190631,202.65,202.6,0.03179362]
[1756507808492,7.36,202.64,202.6,0.03179362]
[1756507811700,2.88190631,202.65,202.6,0.03179362]
[1756507811899,2.51346205,202.64,202.6,0.03179362]
[1756507812109,7.36,202.64,202.6,0.03179362]
[1756507812404,7.36,202.64,202.61,7.85]
[1756507814204,7.36,202.67,202.61,7.85]
[1756507814401,7.36,202.67,202.6,0.03179362]
[1756507814796,2.88190631,202.65,202.6,0.03179362]
[1756507815199,9.87418354,202.64,202.6,0.03179362]
[1756507815403,7.36,202.64,202.6,0.03179362]
[1756507816100,2.88190631,202.65,202.6,0.03179362]
[1756507816296,2.5142932,202.64,202.6,0.03179362]
[1756507816501,7.36,202.64,202.6,0.03179362]
[1756507816697,2.88190631,202.65,202.6,0.03179362]
[1756507816902,2.88190631,202.68,202.6,0.03179362]
[1756507817211,9.87516351,202.67,202.6,7.88179362]
[1756507817507,7.36,202.67,202.6,7.88179362]
[1756507824215,7.36,202.67,202.6,0.03179362]
[1756507827317,2.5153347,202.66,202.6,0.03179362]
[1756507827519,7.36,202.67,202.6,0.03179362]
[1756507827812,2.51539544,202.66,202.6,0.03179362]
[1756507828016,7.36,202.67,202.6,0.03179362]
[1756507828215,7.36,202.65,202.6,0.03179362]
[1756507828412,2.88190631,202.68,202.6,0.03179362]
[1756507828718,13.53458398,202.67,202.6,0.03179362]
[1756507828917,7.36,202.65,202.6,0.03179362]
[1756507829118,7.36,202.67,202.6,0.03179362]
[1756507829311,2.51570333,202.66,202.6,0.03179362]
[1756507829516,2.88190631,202.64,202.6,0.03179362]
[1756507829818,7.36,202.63,202.6,0.03179362]
[1756507830013,2.88190631,202.64,202.6,0.03179362]
[1756507830719,7.36,202.63,202.6,0.03179362]
[1756507830917,2.88190631,202.64,202.6,0.03179362]
[1756507831419,7.36,202.63,202.6,0.03179362]
[1756507831610,2.88190631,202.64,202.6,0.03179362]
[1756507832318,7.36,202.63,202.6,0.03179362]
[1756507832712,2.88190631,202.64,202.6,0.03179362]
[1756507832916,7.36,202.63,202.6,0.03179362]
[1756507833412,2.88190631,202.64,202.6,0.03179362]
[1756507834013,7.36,202.63,202.6,0.03179362]
[1756507834209,2.88190631,202.64,202.6,0.03179362]
[1756507834414,7.36,202.63,202.6,0.03179362]
[1756507834815,2.88190631,202.64,202.6,0.03179362]
[1756507835520,7.36,202.63,202.6,0.03179362]
[1756507835717,2.88190631,202.64,202.6,0.03179362]
[1756507837121,8.01,202.63,202.6,0.03179362]
[1756507837523,2.88190631,202.64,202.6,0.03179362]
[1756507838016,8.01,202.63,202.6,0.03179362]
[1756507838421,2.88190631,202.64,202.6,0.03179362]
[1756507838622,8.01,202.63,202.6,0.03179362]
[1756507839018,2.88190631,202.61,202.6,0.03179362]
[1756507839223,10.89190631,202.61,202.6,0.03179362]
[1756507839821,10.89190631,202.61,202.54,5.53588796]
[1756507839822,13.40932781,202.61,202.54,5.53588796]
[1756507840123,2.88190631,202.57,202.53,5.53588796]
[1756507840918,8.01,202.56,202.53,5.53588796]
[1756507841119,2.91701474,202.57,202.53,5.53588796]
[1756507841326,0.03510843,202.57,202.55,7.56]
[1756507841529,0.03510843,202.57,202.55,13.09588796]
[1756507844425,0.03510843,202.57,202.56,7.56]
[1756507845426,0.03510843,202.57,202.55,5.53588796]
[1756507845622,0.03510843,202.57,202.55,13.09588796]
[1756507846325,0.03510843,202.57,202.55,7.56]
[1756507846529,0.03510843,202.57,202.55,13.09588796]
[1756507847028,0.03510843,202.57,202.55,7.56]
[1756507847423,1.85319376,202.56,202.55,7.56]
[1756507853531,1.88830219,202.57,202.55,7.56]
[1756507853829,1.88830219,202.57,202.54,7.56]
[1756507854032,1.88830219,202.57,202.53,5.53588796]
[1756507854827,1.88830219,202.57,202.54,7.56]
[1756507855027,1.88830219,202.57,202.53,5.53588796]
[1756507855433,1.88830219,202.57,202.54,7.56]
[1756507855630,1.88830219,202.57,202.53,5.53588796]
[1756507855833,1.88830219,202.57,202.54,7.56]
[1756507856234,1.88830219,202.57,202.53,5.53588796]
[1756507856534,0.03510843,202.57,202.53,5.53588796]
[1756507856734,0.03510843,202.57,202.54,7.56]
[1756507856735,1.88830219,202.57,202.54,7.56]
[1756507857135,1.88830219,202.57,202.55,7.56]
[1756507857636,1.88830219,202.57,202.54,5.53588796]
[1756507857825,1.88830219,202.57,202.55,7.56]
[1756507858029,1.88830219,202.57,202.54,5.53588796]
[1756507858229,1.88830219,202.57,202.53,5.53588796]
[1756507858434,1.88830219,202.57,202.54,7.56]
[1756507858828,1.88830219,202.57,202.54,5.53588796]
[1756507859038,0.03510843,202.57,202.54,5.53588796]
[1756507859344,0.03510843,202.57,202.54,7.56]
[1756507859635,8.01,202.56,202.54,7.56]
[1756507860429,9.89830219,202.57,202.54,7.56]
[1756507860636,1.88830219,202.57,202.55,7.56]
[1756507860833,1.88830219,202.57,202.54,5.53588796]
[1756507861135,1.88830219,202.57,202.55,7.56]
[1756507861529,1.88830219,202.57,202.54,7.56]
[1756507861734,1.88830219,202.57,202.53,5.53588796]
[1756507861937,1.88830219,202.57,202.54,7.56]
[1756507862130,1.88830219,202.57,202.53,5.53588796]
[1756507862330,1.88830219,202.57,202.54,7.56]
[1756507862532,1.88830219,202.57,202.53,5.53588796]
[1756507863326,1.88830219,202.57,202.54,7.56]
[1756507863531,1.88830219,202.57,202.51,7.56]
[1756507866339,1.88830219,202.57,202.51,8.30383194]
[1756507866737,1.88830219,202.57,202.52,7.76]
[1756507866934,1.88830219,202.57,202.51,8.30383194]
[1756507867136,1.88830219,202.57,202.52,7.76]
[1756507867537,1.88830219,202.57,202.51,8.30383194]
[1756507867740,1.88830219,202.57,202.52,7.76]
[1756507867940,1.88830219,202.57,202.51,8.30383194]
[1756507868141,1.88830219,202.57,202.52,7.76]
[1756507868341,1.88830219,202.57,202.51,8.30383194]
[1756507868539,1.88830219,202.57,202.52,7.76]
[1756507869140,1.88830219,202.57,202.51,8.30383194]
[1756507869546,1.88830219,202.57,202.52,7.76]
[1756507870245,1.88830219,202.57,202.51,8.30383194]
[1756507870442,1.88830219,202.57,202.52,7.76]
[1756507870639,1.88830219,202.57,202.51,8.30383194]
[1756507871046,1.88830219,202.57,202.52,7.76]
[1756507871242,1.88830219,202.57,202.51,8.30383194]
[1756507871442,1.88830219,202.57,202.52,7.76]
[1756507871645,1.88830219,202.57,202.51,8.30383194]
[1756507871839,1.88830219,202.57,202.52,7.76]
[1756507872047,1.88830219,202.57,202.51,8.30383194]
[1756507872645,1.88830219,202.57,202.52,7.76]
[1756507872845,1.88830219,202.57,202.51,10.1570257]
[1756507873355,9.40830219,202.57,202.53,7.76]
[1756507873652,1.88830219,202.57,202.52,8.30383194]
[1756507873844,0.03510843,202.57,202.53,7.76]
[1756507874049,0.03510843,202.57,202.56,7.76]
[1756507878146,1.85319376,202.64,202.57,7.76]
[1756507878347,1.85319376,202.64,202.58,1.85319376]
[1756507878547,1.85319376,202.64,202.59,7.76]
[1756507878750,1.85319376,202.64,202.58,1.85319376]
[1756507878944,1.85319376,202.64,202.59,7.76]
[1756507879147,1.85319376,202.64,202.58,1.85319376]
[1756507879346,1.85319376,202.64,202.59,7.79476423]
[1756507879552,9.37319376,202.64,202.59,0.03476423]
[1756507880053,9.37319376,202.64,202.6,7.76]
[1756507880548,7.52,202.64,202.6,7.76]
[1756507880754,9.37319376,202.64,202.6,7.76]
[1756507880959,9.37319376,202.64,202.59,0.03476423]
[1756507881348,9.37319376,202.64,202.6,7.76]
[1756507881559,9.37319376,202.64,202.59,0.03476423]
[1756507881951,9.37319376,202.64,202.6,7.76]
[1756507882153,1.85319376,202.64,202.59,0.03476423]
[1756507882355,7.52,202.63,202.59,0.03476423]
[1756507882755,1.85319376,202.64,202.59,7.79476423]
[1756507883055,7.52,202.63,202.59,0.03476423]
[1756507883252,7.52,202.63,202.6,7.76]
[1756507886658,1.85319376,202.64,202.59,0.03476423]
[1756507886859,1.85319376,202.64,202.6,7.76]
[1756507887053,9.37319376,202.64,202.6,7.76]
[1756507887751,7.52,202.63,202.6,7.76]
[1756507888755,7.52,202.63,202.59,0.03476423]
[1756507889252,7.52,202.69,202.63,7.76]
[1756507889858,8.37894113,202.73,202.66,1.85319376]
[1756507890057,8.37894113,202.73,202.59,26.98383194]
[1756507890058,7.52,202.73,202.69,7.76]
[1756507890460,7.52,202.74,202.69,7.76]
[1756507890660,7.52,202.72,202.69,7.76]
[1756507890956,7.52,202.72,202.69,7.79594988]
[1756507892160,331.72,202.75,202.69,0.03594988]
[1756507892361,7.52,202.75,202.69,7.79594988]
[1756507893153,7.52,202.79,202.69,7.79594988]
[1756507893354,2.51667451,202.78,202.69,7.79594988]
[1756507893662,7.52,202.79,202.69,7.79594988]
[1756507894557,7.52,202.79,202.71,2.89095385]
[1756507894764,7.52,202.79,202.72,7.76]
[1756507895462,7.52,202.79,202.73,0.03637878]
[1756507897864,7.52,202.79,202.75,7.36]
[1756507898064,7.52,202.79,202.74,2.89095385]
[1756507899058,7.52,202.79,202.75,7.36]
[1756507899263,7.52,202.79,202.74,2.89095385]
[1756507899561,7.9,202.83,202.75,7.36]
[1756507900462,7.9,202.83,202.77,7.39115167]
[1756507901565,7.9,202.83,202.77,10.28210552]
[1756507903471,7.9,202.87,202.8,2.89095385]
[1756507903667,7.9,202.87,202.81,7.36]
[1756507904075,7.9,202.87,202.73,85.32431909]
[1756507904263,7.9,202.88,202.82,0.03126335]
[1756507913578,7.9,202.88,202.82,7.39126335]
[1756507913778,7.9,202.88,202.82,10.2822172]
[1756507918185,7.9,202.88,202.83,7.36]
[1756507918377,7.9,202.88,202.82,2.9222172]
[1756507918582,7.9,202.88,202.83,7.36]
[1756507918784,7.9,202.91,202.83,7.36]
[1756507922088,7.9,202.91,202.84,2.89095385]
[1756507922288,7.9,202.91,202.85,7.36]
[1756507922991,7.9,202.95,202.88,7.36]
[1756507923793,7.9,202.95,202.89,0.03208901]
[1756507925593,7.9,202.92,202.89,0.03208901]
[1756507928994,7.77,202.92,202.89,0.03208901]
[1756507929800,2.89095385,202.93,202.89,0.03208901]
[1756507930002,7.77,202.92,202.89,0.03208901]
[1756507930203,2.89095385,202.93,202.89,0.03208901]
[1756507931212,7.77,202.92,202.89,0.03208901]
[1756507931602,2.89095385,202.93,202.89,0.03208901]
[1756507931803,7.77,202.92,202.89,0.03208901]
[1756507932207,2.89095385,202.93,202.89,0.03208901]
[1756507933509,7.77,202.92,202.89,0.03208901]
[1756507934098,2.89095385,202.93,202.89,0.03208901]
[1756507934303,7.77,202.92,202.89,0.03208901]
[1756507934503,2.89095385,202.93,202.89,0.03208901]
[1756507934705,7.77,202.92,202.89,0.03208901]
[1756507935511,2.89095385,202.93,202.89,0.03208901]
[1756507936009,7.77,202.92,202.89,0.03208901]
[1756507937005,2.89095385,202.93,202.89,0.03208901]
[1756507937210,7.77,202.92,202.89,0.03208901]
[1756507937510,2.89095385,202.9,202.89,0.03208901]
[1756507937710,13.17315197,202.9,202.81,7.62]
[1756507937899,7.77,202.88,202.78,7.62]
[1756507939007,0.03397627,202.85,202.78,7.62]
[1756507942407,7.80397627,202.85,202.78,7.62]
[1756507949720,7.80397627,202.85,202.79,7.62]
[1756507952021,0.03397627,202.85,202.8,2.89095385]
[1756507952225,0.03397627,202.85,202.82,5.47917006]
[1756507952422,0.03397627,202.85,202.83,7.62]
[1756507952620,0.03397627,202.85,202.82,7.62]
[1756507952826,0.03397627,202.85,202.84,7.62]
[1756507953632,10.66095385,202.95,202.84,8.12]
[1756507953824,9.69822987,202.94,202.85,7.62]
[1756507954025,2.52106258,202.93,202.85,7.62]
[1756507954229,10.66095385,202.95,202.85,7.62]
[1756507954529,2.52100459,202.94,202.87,7.62]
[1756507954729,10.66095385,202.95,202.87,7.62]
[1756507954922,2.52122963,202.94,202.88,0.03316771]
[1756507955118,10.66095385,202.95,202.89,7.62]
[1756507955326,7.77,202.95,202.89,7.62]
[1756507955930,7.77,202.95,202.89,2.89095385]
[1756507956426,7.77,202.95,202.9,7.62]
[1756507956620,7.77,202.95,202.89,2.89095385]
[1756507957225,7.77,202.95,202.9,7.47]
[1756507957426,7.77,202.95,202.89,2.89095385]
[1756507957823,62.29031685,202.96,202.9,7.47]
[1756507960332,7.53,202.97,202.9,7.47]
[1756507960826,7.53,202.97,202.93,7.47]
[1756507961230,7.53,202.97,202.92,2.89095385]
[1756507961430,7.53,202.97,202.93,7.47]
[1756507961628,7.53,202.97,202.93,7.50750918]
[1756507961830,7.53,202.97,202.93,0.03750918]
[1756507962027,7.53,203.01,202.95,7.47]
[1756507962832,46.61095385,203.05,202.96,0.03218577]
[1756507963133,13.58362959,203.04,202.96,0.03218577]
[1756507963333,2.51453234,203.03,202.96,0.03218577]
[1756507963632,7.53,203.04,202.96,0.03218577]
[1756507963834,7.53,203.02,202.96,0.03218577]
[1756507965026,7.53,203.02,202.96,7.50218577]
[1756507966232,10.42095385,203.02,202.96,0.03218577]
[1756507968834,7.53,203.02,202.96,0.03218577]
[1756507970539,2.89095385,203.0,202.96,0.03218577]
[1756507970740,7.53,202.99,202.96,0.03218577]
[1756507970937,2.89095385,203.0,202.96,0.03218577]
[1756507971335,7.53,202.99,202.96,0.03218577]
[1756507971532,2.89095385,203.0,202.96,0.03218577]
[1756507971937,7.53,202.99,202.96,0.03218577]
[1756507972133,2.89095385,203.0,202.96,0.03218577]
[1756507972339,7.53,202.99,202.96,0.03218577]
[1756507972741,2.89095385,203.0,202.96,0.03218577]
[1756507972943,7.53,202.99,202.96,0.03218577]
[1756507973244,2.89095385,203.0,202.96,0.03218577]
[1756507973742,7.53,202.99,202.96,0.03218577]
[1756507973940,2.89095385,203.0,202.96,0.03218577]
[1756507974139,7.53,202.99,202.96,0.03218577]
[1756507974336,2.89095385,203.0,202.96,0.03218577]
[1756507975243,7.53,202.99,202.96,0.03218577]
[1756507975645,2.89095385,203.0,202.96,0.03218577]
[1756507976545,7.53,202.99,202.96,0.03218577]
[1756507976746,2.89095385,203.0,202.96,0.03218577]
[1756507977540,7.53,202.99,202.96,0.03218577]
[1756507977747,2.89095385,203.0,202.96,0.03218577]
[1756507977950,7.53,202.99,202.96,0.03218577]
[1756507978151,2.89095385,203.0,202.96,0.03218577]
[1756507978351,7.53,202.99,202.96,0.03218577]
[1756507978651,2.89095385,203.0,202.96,0.03218577]
[1756507978847,7.53,202.99,202.96,0.03218577]
[1756507979050,7.53,203.03,202.96,0.03218577]
[1756507979751,7.53,203.0,202.96,0.03218577]
[1756507980653,7.53,202.97,202.96,0.03218577]
[1756507981046,2.89095385,203.04,202.96,0.03218577]
[1756507981241,7.53,203.03,202.96,0.03218577]
[1756507981950,7.53,203.03,202.96,7.50218577]
[1756507982543,2.89095385,203.08,202.96,7.50218577]
[1756507982851,7.53,203.06,202.96,7.50218577]
[1756507983053,7.53,203.06,202.96,7.47]
[1756507983254,7.53,203.06,202.99,0.03406534]
[1756507983558,7.53,203.06,202.99,7.50406534]
[1756507985060,10.42095385,203.06,202.99,7.50406534]
[1756507986156,7.53,203.06,202.99,7.50406534]
[1756507992258,7.53,203.06,203.01,7.41]
[1756507992458,7.53,203.06,203.0,2.89095385]
[1756507992859,7.62,203.09,203.0,10.30095385]
[1756507993156,7.62,203.09,203.01,7.41]
[1756507999261,7.62,203.13,203.04,7.41]
[1756507999960,7.62,203.13,203.06,0.03564644]
[1756508000161,7.62,203.13,203.06,7.44564644]
[1756508001563,7.62,203.13,203.06,10.33660029]
[1756508001761,7.62,203.13,203.07,7.41]
[1756508003263,7.62,203.13,203.06,0.03564644]
[1756508004069,38.27095385,203.14,203.06,0.03564644]
[1756508004263,13.68781408,203.13,203.06,0.03564644]
[1756508004464,7.62,203.13,203.06,0.03564644]
[1756508008870,7.62,203.1,203.06,0.03564644]
[1756508009968,2.89095385,203.11,203.06,0.03564644]
[1756508010366,7.62,203.1,203.06,0.03564644]
[1756508013069,7.62,203.19,203.07,7.41]
[1756508013369,2.89095385,203.16,203.09,7.41]
[1756508013567,7.62,203.15,203.09,7.41]
[1756508013873,7.62,203.15,203.1,0.03249612]
[1756508014074,2.89095385,203.16,203.1,0.03249612]
[1756508014476,7.62,203.15,203.1,0.03249612]
[1756508014676,2.89095385,203.16,203.1,0.03249612]
[1756508014969,7.62,203.15,203.1,0.03249612]
[1756508015173,7.62,203.12,203.1,0.03249612]
[1756508015778,2.89095385,203.13,203.1,0.03249612]
[1756508015981,7.62,203.12,203.1,0.03249612]
[1756508016779,7.62,203.12,203.01,7.41]
[1756508016982,10.22095385,203.09,203.01,7.41]
[1756508017482,2.89095385,203.06,202.97,13.09917006]
[1756508017672,7.33,203.05,202.97,7.62]
[1756508018372,0.03281127,203.03,202.97,13.09917006]
[1756508018779,0.03281127,203.03,202.97,7.62]
[1756508021183,0.03281127,203.03,202.97,13.09917006]
[1756508021384,0.03281127,203.03,202.97,5.47917006]
[1756508022080,0.03281127,203.03,202.98,7.62]
[1756508022278,0.03281127,203.03,202.97,8.37012391]
[1756508022279,0.03281127,203.03,203.0,2.89095385]